bitfinex/quotes_SOLUSD_20241222
["timestamp","ask_amount","ask_price","bid_price","bid_amount"]
[1734860296442,0.6797025,186.08,186.07,17.51483796]
[1734860297838,0.6797025,186.08,186.02,17.51483796]
[1734860298032,0.6797025,186.08,186.0,17.51483796]
[1734860298414,0.6797025,186.08,186.07,17.51483796]
[1734860300838,0.6797025,186.08,186.06,20.0]
[1734860301021,0.6797025,186.08,186.04,17.51483796]
[1734860301218,0.6797025,186.08,185.99,0.80601895]
[1734860301428,0.6797025,186.08,185.98,21.3851]
[1734860301429,0.6797025,186.08,185.98,7.9435]
[1734860301631,0.6797025,186.08,186.01,17.51483796]
[1734860302119,0.6797025,186.08,186.02,17.51483796]
[1734860302337,0.6797025,186.08,186.01,17.51483796]
[1734860302740,0.6797025,186.08,186.0,17.51483796]
[1734860302954,0.9535,186.07,185.97,17.51483796]
[1734860303269,0.9535,186.07,185.98,17.51483796]
[1734860303554,0.9535,186.07,185.97,17.51483796]
[1734860303718,0.9535,186.07,186.0,17.51483796]
[1734860303918,0.9535,186.07,186.01,17.51483796]
[1734860304732,5.9765025,186.08,186.02,17.51483796]
[1734860304925,5.9765025,186.08,186.07,17.51483796]
[1734860304926,0.6797025,186.08,186.07,17.51483796]
[1734860306238,0.6797025,186.08,186.07,42.09762583]
[1734860306443,0.6797025,186.08,186.07,18.32074183]
[1734860306985,0.6797025,186.08,186.07,42.09762583]
[1734860308171,0.6797025,186.08,186.07,52.98274313]
[1734860308379,0.6797025,186.08,186.07,29.20585913]
[1734860308741,0.6797025,186.08,186.07,28.39995526]
[1734860310249,0.6797025,186.08,186.05,28.39995526]
[1734860310984,0.6797025,186.08,186.06,28.39995526]
[1734860311282,0.6797025,186.08,186.07,28.39995526]
[1734860311592,0.6797025,186.08,186.06,28.39995526]
[1734860312588,0.6797025,186.08,186.03,28.39995526]
[1734860312952,0.6797025,186.08,186.04,28.39995526]
[1734860314730,0.6797025,186.08,186.05,28.39995526]
[1734860315432,0.6797025,186.08,186.04,28.39995526]
[1734860316308,0.6797025,186.08,186.01,28.39995526]
[1734860316505,0.6797025,186.08,186.0,28.39995526]
[1734860316714,0.6797025,186.08,185.97,28.39995526]
[1734860317231,0.6797025,186.08,186.0,28.39995526]
[1734860318431,0.6797025,186.08,185.99,28.39995526]
[1734860318805,0.6797025,186.08,185.98,28.39995526]
[1734860319392,0.6797025,186.08,185.99,28.39995526]
[1734860319598,4.0307,186.07,185.98,28.39995526]
[1734860319923,4.0307,186.07,185.99,28.39995526]
[1734860320434,23.776884,186.06,185.97,28.39995526]
[1734860320643,23.776884,186.06,185.96,28.39995526]
[1734860321046,23.776884,186.06,185.94,28.39995526]
[1734860321347,4.0307,186.07,185.88,14.25534847]
[1734860321348,24.730384,186.04,185.91,28.39995526]
[1734860321513,24.730384,186.04,185.94,28.39995526]
[1734860322929,0.9535,186.04,185.98,28.39995526]
[1734860323137,0.9535,186.04,185.99,28.39995526]
[1734860323315,0.9535,186.04,185.98,28.39995526]
[1734860324038,0.9535,186.04,185.97,28.39995526]
[1734860324338,0.9535,186.04,185.98,28.39995526]
[1734860324641,1.6332025,186.08,185.98,28.39995526]
[1734860325131,1.6332025,186.08,185.97,28.39995526]
[1734860325647,1.6332025,186.08,185.95,48.39995526]
[1734860325857,27.807584,186.07,185.94,28.39995526]
[1734860326464,27.807584,186.07,185.93,28.39995526]
[1734860328031,27.807584,186.07,185.95,28.39995526]
[1734860330065,27.807584,186.07,185.95,17.50800678]
[1734860332578,20.0,186.04,185.89,0.80651959]
[1734860332856,20.0,186.04,185.79,19.189181]
[1734860332857,23.776884,185.99,185.85,17.50800678]
[1734860333247,5.2968,186.0,185.86,0.80691593]
[1734860333453,5.2968,186.0,185.9,17.50800678]
[1734860333855,5.2968,186.0,185.89,17.50800678]
[1734860334359,9.3291,186.0,185.89,17.50800678]
[1734860334551,9.3291,186.0,185.88,17.50800678]
[1734860335580,23.776884,185.97,185.86,37.50800678]
[1734860335954,4.0326,185.98,185.88,17.50800678]
[1734860336176,4.0326,185.98,185.89,17.50800678]
[1734860336384,4.0326,185.98,185.88,17.50800678]
[1734860336750,4.0326,185.98,185.89,17.50800678]
[1734860336952,23.776884,185.97,185.87,17.50800678]
[1734860337559,23.776884,185.97,185.86,37.50800678]
[1734860337757,23.776884,185.97,185.85,17.50800678]
[1734860337959,23.776884,185.95,185.85,17.50800678]
[1734860338168,23.776884,185.95,185.84,17.50800678]
[1734860338582,23.776884,185.95,185.8,14.26203602]
[1734860338583,23.776884,185.95,185.82,17.50800678]
[1734860338885,23.776884,185.95,185.83,17.50800678]
[1734860339065,23.776884,185.95,185.82,17.50800678]
[1734860339257,23.776884,185.93,185.81,17.50800678]
[1734860339458,27.810684,185.93,185.81,17.50800678]
[1734860340061,27.810684,185.93,185.8,17.50800678]
[1734860340262,23.776884,185.91,185.79,17.50800678]
[1734860341368,4.0344,185.9,185.78,17.50800678]
[1734860341575,23.776884,185.87,185.75,17.50800678]
[1734860341784,23.776884,185.87,185.74,17.50800678]
[1734860342278,23.776884,185.87,185.73,17.50800678]
[1734860342456,0.9535,185.86,185.73,17.50800678]
[1734860342783,23.776884,185.83,185.72,17.50800678]
[1734860342981,23.776884,185.83,185.71,17.50800678]
[1734860343286,23.776884,185.83,185.7,144.86788878]
[1734860343463,24.730384,185.81,185.7,127.359882]
[1734860344664,4.0365,185.8,185.7,127.359882]
[1734860345169,20.0,185.78,185.7,127.359882]
[1734860345367,23.776884,185.77,185.7,127.359882]
[1734860346582,23.776884,185.75,185.7,127.359882]
[1734860346967,23.776884,185.78,185.7,127.359882]
[1734860349001,4.0367,185.8,185.7,155.89841955]
[1734860349294,4.0357,185.84,185.72,28.53853755]
[1734860349504,4.0357,185.84,185.7,155.89841955]
[1734860349706,4.0357,185.84,185.7,127.359882]
[1734860350000,4.0357,185.84,185.7,155.89841955]
[1734860350204,4.0357,185.84,185.72,28.53853755]
[1734860350973,0.9535,185.86,185.74,28.53853755]
[1734860351877,6.2503,185.86,185.73,48.53853755]
[1734860352084,4.0355,185.85,185.73,20.0]
[1734860352260,4.0355,185.85,185.7,157.45121955]
[1734860352768,20.0,185.83,185.7,127.359882]
[1734860352993,23.776884,185.82,185.7,155.89841955]
[1734860353195,23.776884,185.82,185.71,28.53853755]
[1734860353503,23.776884,185.82,185.7,155.89841955]
[1734860355195,23.776884,185.82,185.7,127.359882]
[1734860355395,27.812984,185.82,185.7,127.359882]
[1734860355634,27.812984,185.82,185.7,155.89841955]
[1734860357331,27.812984,185.82,185.7,127.359882]
[1734860359654,10.2857,185.86,185.74,28.53853755]
[1734860360017,10.2857,185.86,185.71,28.53853755]
[1734860360845,23.776884,185.85,185.72,28.53853755]
[1734860361245,23.776884,185.85,185.73,28.53853755]
[1734860361543,10.2857,185.86,185.73,28.53853755]
[1734860361947,10.2857,185.86,185.74,28.53853755]
[1734860362442,10.2857,185.86,185.73,28.53853755]
[1734860362931,10.2857,185.86,185.73,20.0]
[1734860363137,10.2857,185.86,185.73,48.53853755]
[1734860363848,23.776884,185.85,185.73,48.53853755]
[1734860364946,23.776884,185.83,185.7,127.359882]
[1734860365245,23.776884,185.79,185.7,127.359882]
[1734860365448,23.776884,185.83,185.7,155.89841955]
[1734860365945,6.2503,185.86,185.75,28.53853755]
[1734860366145,6.2503,185.86,185.77,17.5405929]
[1734860366530,6.2503,185.86,185.78,17.5405929]
[1734860367344,5.2968,185.9,185.79,18.34773106]
[1734860367653,5.2968,185.9,185.8,17.5405929]
[1734860368038,5.2968,185.9,185.81,0.80704228]
[1734860368355,0.9535,185.91,185.82,28.49333013]
[1734860368740,0.9535,185.91,185.81,29.30037241]
[1734860371035,23.776884,185.94,185.82,28.49333013]
[1734860371348,23.776884,185.94,185.83,28.49333013]
[1734860371555,23.776884,185.94,185.83,29.30027173]
[1734860371723,6.2503,185.95,185.83,29.30027173]
[1734860371931,6.2503,185.95,185.82,28.49333013]
[1734860372529,10.2836,185.95,185.82,28.49333013]
[1734860372736,10.2836,185.95,185.8,29.3002227]
[1734860373030,23.776884,185.94,185.83,20.0]
[1734860373756,23.776884,185.94,185.81,28.49333013]
[1734860373969,10.2836,185.95,185.82,28.49333013]
[1734860374466,6.2503,185.95,185.83,29.30026347]
[1734860375043,6.2503,185.95,185.82,28.49333013]
[1734860375246,23.776884,185.94,185.82,28.49333013]
[1734860375747,23.776884,185.94,185.81,35.81314588]
[1734860376334,23.776884,185.94,185.82,28.49333013]
[1734860376667,23.776884,185.94,185.83,28.49333013]
[1734860377046,23.776884,185.94,185.82,28.49333013]
[1734860377768,23.776884,185.94,185.84,48.49333013]
[1734860378268,0.9535,185.95,185.86,28.49333013]
[1734860378436,0.9535,185.95,185.85,20.0]
[1734860379033,4.9869,185.95,185.82,28.49333013]
[1734860379260,4.9869,185.95,185.8,29.30026078]
[1734860379765,29.073684,185.94,185.79,28.49333013]
[1734860379969,29.073684,185.94,185.78,30.15923013]
[1734860380268,23.776884,185.9,185.77,28.49333013]
[1734860380767,2.16634706,185.94,185.88,26.1]
[1734860380940,6.06495794,186.04,185.93,28.49333013]
[1734860381141,16.46101549,186.05,185.96,28.49333013]
[1734860381142,8.45694492,186.05,185.96,28.49333013]
[1734860381770,14.70724492,186.12,185.96,28.49333013]
[1734860381981,18.73694492,186.12,185.96,28.49333013]
[1734860382780,18.73694492,186.12,185.98,28.49333013]
[1734860382953,10.28,186.12,185.98,28.49333013]
[1734860383789,6.2503,186.12,186.02,28.49333013]
[1734860384081,0.06578021,186.15,186.06,28.49333013]
[1734860384657,0.06578021,186.15,186.07,0.80590544]
[1734860386053,0.06578021,186.15,186.07,29.29923557]
[1734860388049,0.06578021,186.15,186.07,28.49333013]
[1734860392991,0.06578021,186.15,186.06,28.49333013]
[1734860393198,0.06578021,186.15,186.07,28.49333013]
[1734860394398,0.06578021,186.15,186.06,28.49333013]
[1734860394594,20.0,186.19,186.06,28.49333013]
[1734860394777,23.776884,186.18,186.04,28.49333013]
[1734860395282,23.776884,186.18,186.06,28.49333013]
[1734860395477,23.776884,186.18,186.03,0.80611084]
[1734860395686,23.776884,186.14,185.87,28.49333013]
[1734860395986,20.1418,186.18,185.88,28.49333013]
[1734860395987,23.776884,186.12,185.88,28.49333013]
[1734860396190,23.776884,186.1,185.88,28.49333013]
[1734860396374,23.776884,186.08,185.88,28.49333013]
[1734860396576,23.776884,186.06,185.88,28.49333013]
[1734860396889,4.0316,186.03,185.88,28.49333013]
[1734860397091,23.776884,186.01,185.91,20.0]
[1734860397284,0.8672001,186.0,185.91,20.80664682]
[1734860398001,23.776884,186.02,185.91,0.80664682]
[1734860398200,0.8672001,186.01,185.91,0.80664682]
[1734860399298,0.8672001,186.01,185.91,29.29997695]
[1734860399598,4.0309,186.07,185.94,28.49333013]
[1734860399897,0.8672001,186.06,185.95,29.29969852]
[1734860400403,0.8672001,186.07,185.95,29.29969852]
[1734860400702,0.8672001,186.07,185.96,28.49333013]
[1734860400900,0.8672001,186.07,185.97,0.80627802]
[1734860401478,3.8393,186.08,185.99,20.0]
[1734860401894,3.8393,186.08,186.0,20.0]
[1734860402296,3.8393,186.08,185.96,35.01443013]
[1734860402297,0.8672001,186.07,185.96,35.01443013]
[1734860402503,3.8393,186.08,185.97,0.80633364]
[1734860402703,3.8393,186.08,185.99,20.0]
[1734860402901,0.8672001,186.1,185.99,0.80616442]
[1734860403304,0.8672001,186.12,186.03,20.0]
[1734860403603,5.6600001,186.13,186.04,0.80600488]
[1734860404095,5.6600001,186.13,186.02,28.49333013]
[1734860404287,5.6600001,186.13,186.0,28.49333013]
[1734860404500,5.6600001,186.13,186.03,20.0]
[1734860404680,23.776884,186.12,186.03,20.0]
[1734860405004,0.8672001,186.17,186.04,0.80606552]
[1734860405480,0.8672001,186.17,186.04,20.80606552]
[1734860405675,0.8672001,186.17,186.05,20.0]
[1734860406101,0.8672001,186.17,186.06,29.29923518]
[1734860406276,3.8393,186.18,186.06,29.29923518]
[1734860406479,0.8672001,186.17,186.06,29.29923518]
[1734860406702,3.8393,186.18,186.06,29.29923518]
[1734860406904,0.8672001,186.17,186.06,29.29923518]
[1734860407292,0.8672001,186.17,186.07,20.0]
[1734860407492,4.7065001,186.18,186.08,0.80580558]
[1734860408397,0.8672001,186.17,186.08,0.80580558]
[1734860409080,0.8672001,186.19,186.08,0.80580558]
[1734860409297,1.8207001,186.22,186.11,20.0]
[1734860409488,1.8207001,186.22,186.09,0.80565715]
[1734860410512,23.776884,186.21,186.09,0.80565715]
[1734860410802,0.8672001,186.2,186.1,20.0]
[1734860411212,23.776884,186.19,186.09,0.80565715]
[1734860411400,23.776884,186.19,186.07,7.27502842]
[1734860411401,0.8672001,186.18,186.07,7.27502842]
[1734860411593,0.8672001,186.18,186.09,0.80582842]
[1734860412500,0.8672001,186.18,186.08,0.80576989]
[1734860413908,23.776884,186.17,186.08,0.80576989]
[1734860414096,0.8672001,186.16,186.08,0.80576989]
[1734860414291,0.8672001,186.16,186.03,29.29920512]
[1734860414511,23.776884,186.15,186.03,0.80587499]
[1734860414714,0.8672001,186.14,186.03,0.80587499]
[1734860415209,23.776884,186.13,186.03,0.80587499]
[1734860415411,0.8672001,186.14,186.03,29.29920512]
[1734860415825,23.776884,186.15,186.03,29.29920512]
[1734860416106,23.776884,186.15,186.04,28.49333013]
[1734860416291,23.776884,186.15,186.05,0.80592353]
[1734860416491,0.8672001,186.14,186.05,20.80592353]
[1734860417117,0.9535,186.12,186.02,0.80595413]
[1734860417315,23.776884,186.1,186.01,20.0]
[1734860417520,0.8672001,186.09,186.01,20.0]
[1734860417885,0.8672001,186.09,185.98,28.49333013]
[1734860418089,4.7928,186.17,186.05,28.49333013]
[1734860418286,0.8672001,186.16,186.06,29.29922524]
[1734860418493,4.7928,186.17,186.06,29.29922524]
[1734860418818,4.7928,186.17,186.06,0.80589511]
[1734860419186,4.7928,186.17,186.07,28.49333013]
[1734860419391,4.7928,186.17,186.08,0.80577387]
[1734860420329,0.8672001,186.2,186.1,20.0]
[1734860420492,4.7928,186.21,186.11,20.0]
[1734860420692,0.8672001,186.2,186.12,20.8056678]
[1734860420987,4.7928,186.21,186.12,20.8056678]
[1734860421193,4.7928,186.21,186.13,20.0]
[1734860421894,0.8672001,186.24,186.15,20.0]
[1734860422218,0.8672001,186.25,186.15,20.0]
[1734860422414,0.8672001,186.25,186.14,20.0]
[1734860423190,23.776884,186.24,186.14,20.0]
[1734860423394,0.8672001,186.23,186.14,20.0]
[1734860424102,0.8672001,186.23,186.12,0.80555881]
[1734860424103,0.8672001,186.25,186.15,0.80558976]
[1734860425220,0.8672001,186.25,186.2,28.49333013]
[1734860425425,0.6797025,186.26,186.24,48.49333013]
[1734860425618,0.6797025,186.26,186.25,29.29843489]
[1734860426494,4.5190025,186.26,186.17,0.80499234]
[1734860426699,0.8672001,186.25,186.13,28.49333013]
[1734860427027,0.8672001,186.25,186.14,0.8054514]
[1734860428016,23.776884,186.24,186.09,29.29882816]
[1734860428202,23.776884,186.22,186.09,29.29882816]
[1734860428409,0.8672001,186.21,186.09,29.29882816]
[1734860428609,23.776884,186.2,186.09,0.80549803]
[1734860428807,23.776884,186.18,186.08,0.80580554]
[1734860429121,27.616184,186.16,186.06,0.80585443]
[1734860429423,0.8672001,186.15,186.04,0.80596079]
[1734860429798,3.8393,186.2,186.09,28.49333013]
[1734860430119,3.8393,186.2,186.14,20.0]
[1734860430720,0.9535,186.22,186.14,20.0]
[1734860431609,3.8393,186.24,186.15,0.80554429]
[1734860431809,0.8672001,186.23,186.15,0.80554429]
[1734860432617,0.8672001,186.23,186.12,0.80555715]
[1734860433208,23.776884,186.22,186.12,0.80555715]
[1734860433426,0.8672001,186.21,186.12,0.80555715]
[1734860434527,23.776884,186.2,186.12,20.0]
[1734860434718,0.8672001,186.19,186.12,20.0]
[1734860434920,0.8672001,186.23,186.12,20.0]
[1734860435230,23.776884,186.22,186.13,0.80572182]
[1734860435526,0.8672001,186.21,186.13,0.80572182]
[1734860435726,23.776884,186.22,186.12,20.80563761]
[1734860435929,0.8672001,186.21,186.12,20.80563761]
[1734860436722,23.776884,186.2,186.09,28.49333013]
[1734860436917,0.8672001,186.21,186.1,0.80574343]
[1734860438308,23.776884,186.2,186.1,0.80574343]
[1734860438511,0.8672001,186.19,186.1,0.80574343]
[1734860438710,23.776884,186.2,186.1,0.80574343]
[1734860438909,0.8672001,186.21,186.1,0.80574343]
[1734860439310,23.776884,186.2,186.1,0.80574343]
[1734860439818,4.98,186.27,186.14,20.0]
[1734860440015,0.8672001,186.25,186.14,0.80557267]
[1734860441232,23.776884,186.24,186.14,0.80557267]
[1734860441428,23.776884,186.25,186.14,0.80557267]
[1734860441733,0.8672001,186.24,186.14,0.80557267]
[1734860443123,23.776884,186.23,186.12,6.0958]
[1734860443318,23.776884,186.21,186.12,20.80570156]
[1734860443919,0.8672001,186.2,186.12,20.80570156]
[1734860444225,0.8672001,186.24,186.12,20.80570156]
[1734860445135,1.5469026,186.26,186.14,20.0]
[1734860445327,1.5469026,186.26,186.16,20.0]
[1734860445530,1.5469026,186.26,186.17,0.80541175]
[1734860446608,0.6797025,186.26,186.18,20.0]
[1734860446834,0.6797025,186.26,186.19,0.80531454]
[1734860447438,0.6797025,186.26,186.16,0.80538033]
[1734860447638,0.8672001,186.25,186.14,6.90131731]
[1734860447842,0.8672001,186.25,186.11,2.3695931]
[1734860448138,23.776884,186.24,186.11,2.3695931]
[1734860448317,23.776884,186.22,186.11,2.3695931]
[1734860448515,0.8672001,186.21,186.11,2.3695931]
[1734860448726,23.776884,186.22,186.11,2.3695931]
[1734860448929,0.8672001,186.21,186.11,2.3695931]
[1734860449237,0.8672001,186.21,186.11,1.564]
[1734860449238,23.776884,186.2,186.11,1.564]
[1734860449536,23.776884,186.18,186.11,1.564]
[1734860449728,0.8672001,186.17,186.09,6.90152144]
[1734860449920,23.776884,186.18,186.09,6.90152144]
[1734860450121,0.8672001,186.17,186.09,6.0958]
[1734860450727,23.776884,186.16,186.07,0.80583306]
[1734860450946,23.776884,186.16,186.02,7.6598]
[1734860450947,23.776884,186.14,186.02,7.6598]
[1734860451126,0.8672001,186.13,186.02,8.46582235]
[1734860452011,0.8672001,186.13,186.05,20.0]
[1734860452216,23.776884,186.18,186.06,29.29919182]
[1734860452442,0.8672001,186.17,186.06,29.29919182]
[1734860453725,0.8672001,186.18,186.06,29.29919182]
[1734860454223,0.8672001,186.22,186.1,48.49333013]
[1734860454434,0.8672001,186.22,186.12,28.49333013]
[1734860454744,1.5469026,186.26,186.14,28.49333013]
[1734860454932,1.5469026,186.26,186.15,0.80546849]
[1734860457038,0.6797025,186.26,186.19,20.0]
[1734860457343,0.6797025,186.26,186.22,20.0]
[1734860457521,0.6797025,186.26,186.22,20.80521597]
[1734860458156,0.6797025,186.26,186.22,0.80521597]
[1734860458525,0.6797025,186.26,186.21,20.0]
[1734860458725,0.6797025,186.26,186.22,0.8052529]
[1734860458928,0.6797025,186.26,186.21,20.0]
[1734860460129,0.6797025,186.26,186.14,29.29862021]
[1734860460526,0.6797025,186.26,186.2,28.49333013]
[1734860460829,0.6797025,186.26,186.21,0.8052274]
[1734860461553,0.6797025,186.26,186.23,20.0]
[1734860463255,0.6797025,186.26,186.24,20.80520868]
[1734860463429,0.6797025,186.26,186.24,36.94753881]
[1734860464044,0.6797025,186.26,186.24,8.45420868]
[1734860464470,0.6797025,186.26,186.24,7.649]
[1734860465241,0.6797025,186.26,186.19,7.649]
[1734860465562,0.6797025,186.26,186.2,0.80531133]
[1734860465743,0.6797025,186.26,186.15,0.80532801]
[1734860465939,0.8672001,186.25,186.15,0.80532801]
[1734860466135,0.6797025,186.26,186.15,0.80532801]
[1734860466433,0.6797025,186.26,186.15,29.29865814]
[1734860466838,0.6797025,186.26,186.16,28.49333013]
[1734860467038,0.6797025,186.26,186.17,0.8053331]
[1734860467760,24.6440841,186.25,186.14,7.649]
[1734860468647,24.6440841,186.25,186.15,0.80564666]
[1734860468857,24.6440841,186.25,186.14,7.649]
[1734860469059,23.776884,186.23,186.14,7.649]
[1734860469378,23.776884,186.21,186.14,7.649]
[1734860469560,0.8672001,186.2,186.09,36.14233013]
[1734860469756,24.6440841,186.23,186.1,0.80574126]
[1734860470977,24.6440841,186.23,186.12,20.0]
[1734860471168,24.6440841,186.23,186.13,0.80556622]
[1734860475079,0.8672001,186.25,186.13,29.29889635]
[1734860475285,1.5469026,186.26,186.15,28.49333013]
[1734860475452,1.5469026,186.26,186.16,0.80542001]
[1734860476176,0.6797025,186.26,186.16,0.80542001]
[1734860476393,0.6797025,186.26,186.17,48.49333013]
[1734860476682,0.6797025,186.26,186.18,0.80537456]
[1734860477389,0.6797025,186.26,186.18,29.29870469]
[1734860477578,0.6797025,186.26,186.18,0.80537456]
[1734860479387,0.6797025,186.26,186.19,36.16343013]
[1734860479693,0.6797025,186.26,186.2,29.29854426]
[1734860480089,0.6797025,186.26,186.21,28.49333013]
[1734860480278,0.6797025,186.26,186.22,0.80518518]
[1734860481681,0.6797025,186.26,186.25,20.0]
[1734860481863,0.6797025,186.26,186.25,0.80501967]
[1734860482882,0.6797025,186.26,186.25,20.80501967]
[1734860484369,0.6797025,186.26,186.25,49.2983498]
[1734860485084,0.6797025,186.26,186.24,20.0]
[1734860485377,0.6797025,186.26,186.23,0.80507085]
[1734860485565,0.6797025,186.26,186.21,0.80520165]
[1734860486761,0.6797025,186.26,186.2,0.8053324]
[1734860491760,0.6797025,186.26,186.17,28.49333013]
[1734860491957,23.776884,186.25,186.16,0.80540496]
[1734860492177,24.6440841,186.25,186.14,0.8055437]
[1734860492390,24.6440841,186.25,186.15,17.47297876]
[1734860492566,24.6440841,186.25,186.16,0.8054691]
[1734860492985,0.6797025,186.26,186.17,17.47297876]
[1734860493185,0.6797025,186.26,186.18,0.8054035]
[1734860494085,23.776884,186.25,186.17,0.80540138]
[1734860494275,0.6797025,186.26,186.17,0.80540138]
[1734860495893,24.6440841,186.25,186.15,20.0]
[1734860496190,24.6440841,186.25,186.14,0.80556543]
[1734860496890,28.6708841,186.25,186.14,0.80556543]
[1734860497404,24.6440841,186.25,186.14,18.27854419]
[1734860497702,23.776884,186.25,186.14,18.27854419]
[1734860498178,0.8672001,186.24,186.14,18.27854419]
[1734860498377,0.8672001,186.24,186.16,17.47297876]
[1734860498701,0.6797025,186.26,186.17,18.27847397]
[1734860499791,0.6797025,186.26,186.18,20.0]
[1734860499971,0.6797025,186.26,186.18,20.80543556]
[1734860500376,23.776884,186.25,186.18,20.0]
[1734860500777,0.8672001,186.24,186.17,0.8053938]
[1734860500985,23.776884,186.25,186.17,0.8053938]
[1734860501369,0.8672001,186.24,186.17,0.8053938]
[1734860501691,0.8672001,186.24,186.14,29.18651278]
[1734860502010,0.8672001,186.24,186.12,28.38097093]
[1734860502011,23.776884,186.23,186.12,28.38097093]
[1734860502215,0.8672001,186.22,186.12,28.38097093]
[1734860502424,0.8672001,186.22,186.13,0.80566607]
[1734860503918,0.8672001,186.22,186.1,36.50157093]
[1734860503919,23.776884,186.21,186.11,0.80563901]
[1734860504122,0.8672001,186.2,186.11,0.80563901]
[1734860506628,23.776884,186.21,186.11,0.80563901]
[1734860506922,0.8672001,186.24,186.13,20.0]
[1734860507095,23.776884,186.23,186.14,0.80559398]
[1734860507428,0.8672001,186.22,186.14,0.80559398]
[1734860508419,0.8672001,186.22,186.12,0.80564166]
[1734860511189,23.776884,186.21,186.12,0.80564166]
[1734860511412,0.8672001,186.2,186.11,0.80573768]
[1734860511613,23.776884,186.19,186.11,0.80573768]
[1734860511917,0.8672001,186.18,186.1,8.1206]
[1734860512610,23.776884,186.19,186.11,0.80580706]
[1734860512913,0.8672001,186.21,186.11,0.80580706]
[1734860513420,24.6440841,186.25,186.11,0.80580706]
[1734860514215,23.776884,186.23,186.11,0.80580706]
[1734860514393,23.776884,186.21,186.11,0.80580706]
[1734860514584,0.8672001,186.2,186.11,0.80580706]
[1734860514788,23.776884,186.23,186.11,0.80580706]
[1734860514789,23.776884,186.21,186.11,0.80580706]
[1734860515092,23.776884,186.19,186.05,7.6524]
[1734860515396,23.776884,186.17,186.06,0.80592621]
[1734860515608,23.776884,186.17,186.05,7.6524]
[1734860515609,23.776884,186.15,186.05,7.6524]
[1734860515800,23.776884,186.13,186.05,7.6524]
[1734860516119,0.8672001,186.12,186.05,7.6524]
[1734860516428,23.776884,186.11,186.01,6.0503]
[1734860516590,23.776884,186.09,186.0,1.6021]
[1734860516791,23.776884,186.07,185.97,6.0503]
[1734860516994,23.776884,186.05,185.97,6.0503]
[1734860517196,0.8672001,186.04,185.97,6.0503]
[1734860517413,23.776884,186.05,185.97,6.0503]
[1734860517589,0.8672001,186.04,185.97,6.0503]
[1734860517792,23.776884,186.05,185.95,1.6021]
[1734860517994,23.776884,186.03,185.95,1.6021]
[1734860518213,0.8672001,186.04,185.95,1.6021]
[1734860519416,23.776884,186.03,185.95,1.6021]
[1734860519604,0.8672001,186.02,185.93,6.481]
[1734860520110,0.8672001,186.02,185.9,0.8064913]
[1734860520111,20.0,185.98,185.9,0.8064913]
[1734860520301,24.6440841,185.97,185.88,6.481]
[1734860520506,24.6440841,185.97,185.86,1.5864]
[1734860520807,20.0,185.94,185.86,1.5864]
[1734860521011,0.8672001,185.93,185.86,1.5864]
[1734860521510,0.8672001,185.96,185.86,1.5864]
[1734860521712,0.9535,186.0,185.87,0.80683668]
[1734860521912,0.8672001,186.01,185.93,17.51755874]
[1734860522100,1.8207001,186.05,185.94,0.80646274]
[1734860523620,20.0,186.04,185.94,0.80646274]
[1734860523807,20.8672001,186.04,185.94,0.80646274]
[1734860524197,20.8672001,186.04,185.9,0.80637155]
[1734860524401,20.8672001,186.04,185.93,17.51755874]
[1734860524618,20.8672001,186.04,185.94,0.80640749]
[1734860524815,4.0309,186.07,185.95,1.5864]
[1734860525003,0.8672001,186.06,185.96,0.80634949]
[1734860526020,23.776884,186.05,185.95,2.39281503]
[1734860526231,0.8672001,186.04,185.95,2.39281503]
[1734860526411,0.8672001,186.07,185.95,19.91037377]
[1734860526607,0.8672001,186.07,185.97,17.51755874]
[1734860526808,0.8672001,186.1,185.99,17.51755874]
[1734860527015,0.8672001,186.11,186.0,18.32365838]
[1734860527219,0.8672001,186.14,186.0,18.32365838]
[1734860528122,0.8672001,186.14,186.0,0.80609964]
[1734860528328,4.0294,186.13,185.97,0.80617264]
[1734860528522,0.8672001,186.12,185.97,0.80617264]
[1734860528827,23.776884,186.07,185.96,7.28733267]
[1734860529012,0.8672001,186.06,185.96,7.28733267]
[1734860530008,24.6440841,186.07,185.96,7.28733267]
[1734860531502,24.6440841,186.07,185.96,6.481]
[1734860531930,24.6440841,186.07,185.97,0.80630917]
[1734860532098,0.8672001,186.07,185.97,0.80630917]
[1734860532519,4.7928,186.11,185.91,7.5083]
[1734860532735,20.0,186.08,185.91,7.5083]
[1734860533047,0.8672001,186.07,185.91,7.5083]
[1734860533228,0.8672001,186.07,185.93,17.51755874]